[Event "Titled Tuesday Blitz May 16 Early 2023"]
[White "Jeet, Jain"]
[Black "Koutsin, Sergey"]
[WhiteFideId "5073022"]
[BlackFideId "14101483"]
[WhiteElo "2067"]
[BlackElo "2381"]
[Result "1-0"]
[Round "07"]
[TimeControl "180+2"]
[Date "2023.05.16"]
[WhiteClock "0:00:19"]
[BlackClock "0:00:10"]

1. d4 {[%clk 0:03:00]}  Nf6 {[%clk 0:02:59]} 2. Nf3 {[%clk 0:02:57]}  e6 {[%clk 0:02:59]} 3. e3 {[%clk 0:02:58]}  c5 {[%clk 0:02:58]} 4. Be2 {[%clk 0:02:57]}  Nc6 {[%clk 0:02:58]} 5. O-O {[%clk 0:02:57]}  d5 {[%clk 0:02:58]} 6. b3 {[%clk 0:02:58]}  Bd6 {[%clk 0:02:56]} 7. Bb2 {[%clk 0:02:58]}  Qc7 {[%clk 0:02:56]} 8. Nbd2 {[%clk 0:02:55]}  cxd4 {[%clk 0:02:53]} 9. exd4 {[%clk 0:02:54]}  O-O {[%clk 0:02:53]} 10. c4 {[%clk 0:02:54]}  dxc4 {[%clk 0:02:37]} 11. bxc4 {[%clk 0:02:53]}  Be7 {[%clk 0:02:17]} 12. Rc1 {[%clk 0:02:51]}  Rd8 {[%clk 0:02:17]} 13. Nb3 {[%clk 0:02:49]}  b6 {[%clk 0:02:15]} 14. Qc2 {[%clk 0:02:45]}  Bb7 {[%clk 0:02:15]} 15. Rfd1 {[%clk 0:02:45]}  Rac8 {[%clk 0:02:14]} 16. a3 {[%clk 0:02:44]}  h6 {[%clk 0:02:12]} 17. h3 {[%clk 0:02:40]}  Qf4 {[%clk 0:02:06]} 18. Nbd2 {[%clk 0:02:21]}  Na5 {[%clk 0:01:57]} 19. Qb1 {[%clk 0:02:07]}  Ne4 {[%clk 0:01:38]} 20. Nf1 {[%clk 0:01:56]}  Nb3 {[%clk 0:01:30]} 21. Rc2 {[%clk 0:01:55]}  Ng5 {[%clk 0:01:25]} 22. Rc3 {[%clk 0:01:50]}  Be4 {[%clk 0:01:16]} 23. Qa1 {[%clk 0:01:43]}  Na5 {[%clk 0:01:13]} 24. Ne5 {[%clk 0:01:34]}  Nc6 {[%clk 0:00:58]} 25. Nxc6 {[%clk 0:01:31]}  Bxc6 {[%clk 0:00:57]} 26. Ng3 {[%clk 0:01:23]}  Bf8 {[%clk 0:00:53]} 27. Rcd3 {[%clk 0:01:19]}  Ba4 {[%clk 0:00:50]} 28. Rc1 {[%clk 0:01:09]}  Qb8 {[%clk 0:00:43]} 29. h4 {[%clk 0:01:06]}  Nh7 {[%clk 0:00:40]} 30. d5 {[%clk 0:01:03]}  exd5 {[%clk 0:00:39]} 31. cxd5 {[%clk 0:01:04]}  Rxc1+ {[%clk 0:00:37]} 32. Qxc1 {[%clk 0:01:05]}  Bb5 {[%clk 0:00:32]} 33. Rd1 {[%clk 0:00:58]}  Bxe2 {[%clk 0:00:32]} 34. Nxe2 {[%clk 0:00:59]}  Qd6 {[%clk 0:00:25]} 35. Ng3 {[%clk 0:00:56]}  Qc5 {[%clk 0:00:19]} 36. Qxc5 {[%clk 0:00:50]}  bxc5 {[%clk 0:00:20]} 37. Kf1 {[%clk 0:00:44]}  g6 {[%clk 0:00:19]} 38. Ne4 {[%clk 0:00:41]}  f5 {[%clk 0:00:19]} 39. Ng3 {[%clk 0:00:33]}  Kf7 {[%clk 0:00:20]} 40. h5 {[%clk 0:00:33]}  Nf6 {[%clk 0:00:19]} 41. hxg6+ {[%clk 0:00:32]}  Kxg6 {[%clk 0:00:20]} 42. Bxf6 {[%clk 0:00:29]}  Kxf6 {[%clk 0:00:21]} 43. Ne2 {[%clk 0:00:30]}  Bd6 {[%clk 0:00:18]} 44. f4 {[%clk 0:00:25]}  c4 {[%clk 0:00:18]} 45. g3 {[%clk 0:00:24]}  Rc8 {[%clk 0:00:18]} 46. a4 {[%clk 0:00:22]}  c3 {[%clk 0:00:18]} 47. Rc1 {[%clk 0:00:23]}  c2 {[%clk 0:00:18]} 48. Nd4 {[%clk 0:00:23]}  Rc4 {[%clk 0:00:18]} 49. Nxc2 {[%clk 0:00:18]}  h5 {[%clk 0:00:14]} 50. Ke2 {[%clk 0:00:18]}  h4 {[%clk 0:00:14]} 51. gxh4 {[%clk 0:00:17]}  Bxf4 {[%clk 0:00:14]} 52. Rf1 {[%clk 0:00:18]}  Rxc2+ {[%clk 0:00:13]} 53. Kd3 {[%clk 0:00:18]}  Rc5 {[%clk 0:00:10]} 54. Rxf4 {[%clk 0:00:17]}  Rxd5+ {[%clk 0:00:10]} 55. Rd4 {[%clk 0:00:18]}  Re5 {[%clk 0:00:08]} 56. Rd6+ {[%clk 0:00:17]}  Ke7 {[%clk 0:00:07]} 57. Ra6 {[%clk 0:00:17]}  Re4 {[%clk 0:00:06]} 58. Rxa7+ {[%clk 0:00:18]}  Ke6 {[%clk 0:00:07]} 59. h5 {[%clk 0:00:19]}  Rh4 {[%clk 0:00:07]} 60. h6 {[%clk 0:00:18]}  Kd5 {[%clk 0:00:07]} 61. Ra5+ {[%clk 0:00:18]}  Ke6 {[%clk 0:00:07]} 62. Ra6+ {[%clk 0:00:18]}  Ke5 {[%clk 0:00:07]} 63. a5 {[%clk 0:00:18]}  Rh3+ {[%clk 0:00:07]} 64. Ke2 {[%clk 0:00:19]}  Ke4 {[%clk 0:00:08]} 65. Re6+ {[%clk 0:00:18]}  Kf4 {[%clk 0:00:08]} 66. a6 {[%clk 0:00:18]}  Rh2+ {[%clk 0:00:09]} 67. Kd3 {[%clk 0:00:18]}  Kf3 {[%clk 0:00:09]} 68. a7 {[%clk 0:00:18]}  Ra2 {[%clk 0:00:09]} 69. h7 {[%clk 0:00:18]}  Ra3+ {[%clk 0:00:09]} 70. Kc4 {[%clk 0:00:18]}  Rxa7 {[%clk 0:00:10]} 71. h8=Q {[%clk 0:00:18]}  Ra4+ {[%clk 0:00:11]} 72. Kb3 {[%clk 0:00:18]}  Re4 {[%clk 0:00:12]} 73. Rxe4 {[%clk 0:00:18]}  Kxe4 {[%clk 0:00:10]} 74. Qh1+ {[%clk 0:00:19]} 1-0


[Site "https://www.chess.com"]

[Event "Titled Tuesday Blitz May 16 Early 2023"]
[White "Zemlyanskii, Ivan"]
[Black "Khamdamova, Afruza"]
[WhiteFideId "24249971"]
[BlackFideId "14210444"]
[WhiteElo "2421"]
[BlackElo "2312"]
[Result "1-0"]
[Round "07"]
[TimeControl "180+2"]
[Date "2023.05.16"]
[WhiteClock "0:00:36"]
[BlackClock "0:00:05"]

1. d4 {[%clk 0:03:00]}  Nf6 {[%clk 0:02:57]} 2. c4 {[%clk 0:03:00]}  e6 {[%clk 0:02:52]} 3. Bf4 {[%clk 0:02:59]}  d5 {[%clk 0:02:51]} 4. Nc3 {[%clk 0:02:59]}  Be7 {[%clk 0:02:49]} 5. e3 {[%clk 0:02:57]}  O-O {[%clk 0:02:49]} 6. Nf3 {[%clk 0:02:58]}  b6 {[%clk 0:02:46]} 7. cxd5 {[%clk 0:02:57]}  Nxd5 {[%clk 0:02:44]} 8. Nxd5 {[%clk 0:02:56]}  Qxd5 {[%clk 0:02:44]} 9. Bd3 {[%clk 0:02:51]}  Bb7 {[%clk 0:02:44]} 10. O-O {[%clk 0:02:36]}  c5 {[%clk 0:02:34]} 11. Qc2 {[%clk 0:02:27]}  h6 {[%clk 0:02:23]} 12. dxc5 {[%clk 0:02:21]}  Qxc5 {[%clk 0:02:20]} 13. Qe2 {[%clk 0:02:12]}  Nc6 {[%clk 0:02:09]} 14. Rac1 {[%clk 0:02:06]}  Qh5 {[%clk 0:02:08]} 15. Be4 {[%clk 0:02:06]}  Rac8 {[%clk 0:02:00]} 16. Rfd1 {[%clk 0:01:28]}  Na5 {[%clk 0:01:43]} 17. Bb1 {[%clk 0:01:16]}  Bd5 {[%clk 0:01:03]} 18. h3 {[%clk 0:01:02]}  g5 {[%clk 0:00:59]} 19. Bg3 {[%clk 0:00:58]}  g4 {[%clk 0:00:58]} 20. Nd4 {[%clk 0:00:43]}  f5 {[%clk 0:00:38]} 21. e4 {[%clk 0:00:43]}  Bc4 {[%clk 0:00:36]} 22. Rxc4 {[%clk 0:00:43]}  Nxc4 {[%clk 0:00:36]} 23. exf5 {[%clk 0:00:43]}  e5 {[%clk 0:00:33]} 24. hxg4 {[%clk 0:00:41]}  Qf7 {[%clk 0:00:30]} 25. Ne6 {[%clk 0:00:41]}  Rfe8 {[%clk 0:00:25]} 26. Rd7 {[%clk 0:00:41]}  Qf6 {[%clk 0:00:20]} 27. Be4 {[%clk 0:00:38]}  Nd6 {[%clk 0:00:19]} 28. Bd5 {[%clk 0:00:38]}  Kh8 {[%clk 0:00:19]} 29. Bxe5 {[%clk 0:00:36]}  Rc1+ {[%clk 0:00:05]} 30. Kh2 {[%clk 0:00:36]} 1-0


[Site "https://www.chess.com"]

[Event "Titled Tuesday Blitz May 16 Early 2023"]
[White "Ladan, Nicholas"]
[Black "Rozman, Levy"]
[WhiteFideId "30918855"]
[BlackFideId "2039877"]
[WhiteElo "2167"]
[BlackElo "2376"]
[Result "1/2-1/2"]
[Round "07"]
[TimeControl "180+2"]
[Date "2023.05.16"]
[WhiteClock "0:00:12"]
[BlackClock "0:00:02"]

1. d4 {[%clk 0:03:00]}  g6 {[%clk 0:02:59]} 2. Nf3 {[%clk 0:03:00]}  Bg7 {[%clk 0:02:59]} 3. Nbd2 {[%clk 0:02:58]}  d6 {[%clk 0:03:00]} 4. e4 {[%clk 0:02:58]}  Nc6 {[%clk 0:03:00]} 5. Bb5 {[%clk 0:02:58]}  Bd7 {[%clk 0:03:00]} 6. O-O {[%clk 0:02:57]}  Nxd4 {[%clk 0:03:00]} 7. Bxd7+ {[%clk 0:02:55]}  Qxd7 {[%clk 0:03:01]} 8. Nxd4 {[%clk 0:02:56]}  Bxd4 {[%clk 0:03:02]} 9. c3 {[%clk 0:02:55]}  Bg7 {[%clk 0:03:02]} 10. Qb3 {[%clk 0:02:55]}  b6 {[%clk 0:03:01]} 11. a4 {[%clk 0:02:51]}  a6 {[%clk 0:03:00]} 12. Nc4 {[%clk 0:02:47]}  e6 {[%clk 0:02:56]} 13. Rd1 {[%clk 0:02:45]}  Ne7 {[%clk 0:02:56]} 14. Bf4 {[%clk 0:02:24]}  O-O {[%clk 0:02:56]} 15. Rd2 {[%clk 0:02:14]}  Qc6 {[%clk 0:02:51]} 16. f3 {[%clk 0:02:06]}  b5 {[%clk 0:02:50]} 17. Ne3 {[%clk 0:02:00]}  e5 {[%clk 0:02:45]} 18. Bg3 {[%clk 0:01:56]}  Bh6 {[%clk 0:02:46]} 19. Bf2 {[%clk 0:01:44]}  Rab8 {[%clk 0:02:40]} 20. axb5 {[%clk 0:01:27]}  axb5 {[%clk 0:02:40]} 21. Rdd1 {[%clk 0:01:22]}  Ra8 {[%clk 0:02:38]} 22. Ng4 {[%clk 0:01:15]}  Bg7 {[%clk 0:02:37]} 23. Ne3 {[%clk 0:01:13]}  Ra4 {[%clk 0:02:34]} 24. Rxa4 {[%clk 0:01:05]}  bxa4 {[%clk 0:02:35]} 25. Qa2 {[%clk 0:01:06]}  Rb8 {[%clk 0:02:33]} 26. Rd2 {[%clk 0:01:00]}  Qb5 {[%clk 0:02:31]} 27. Ng4 {[%clk 0:00:55]}  h5 {[%clk 0:02:30]} 28. Ne3 {[%clk 0:00:55]}  Qb3 {[%clk 0:02:30]} 29. Qxb3 {[%clk 0:00:49]}  axb3 {[%clk 0:02:30]} 30. h3 {[%clk 0:00:47]}  Bh6 {[%clk 0:02:30]} 31. Rd1 {[%clk 0:00:46]}  Bxe3 {[%clk 0:02:28]} 32. Bxe3 {[%clk 0:00:47]}  Ra8 {[%clk 0:02:29]} 33. Kf2 {[%clk 0:00:40]}  Ra2 {[%clk 0:02:29]} 34. Rd2 {[%clk 0:00:39]}  Kf8 {[%clk 0:02:27]} 35. Ke2 {[%clk 0:00:39]}  Ke8 {[%clk 0:02:27]} 36. Kd3 {[%clk 0:00:40]}  Nc6 {[%clk 0:02:12]} 37. Kc4 {[%clk 0:00:34]}  Na5+ {[%clk 0:02:12]} 38. Kb4 {[%clk 0:00:32]}  Kd7 {[%clk 0:02:11]} 39. g4 {[%clk 0:00:29]}  hxg4 {[%clk 0:02:11]} 40. hxg4 {[%clk 0:00:30]}  Ra1 {[%clk 0:02:08]} 41. Rf2 {[%clk 0:00:23]}  c6 {[%clk 0:02:04]} 42. f4 {[%clk 0:00:18]}  f6 {[%clk 0:02:04]} 43. fxe5 {[%clk 0:00:19]}  fxe5 {[%clk 0:02:05]} 44. Bg5 {[%clk 0:00:18]}  d5 {[%clk 0:02:01]} 45. exd5 {[%clk 0:00:17]}  cxd5 {[%clk 0:02:01]} 46. Rf7+ {[%clk 0:00:17]}  Ke6 {[%clk 0:02:00]} 47. Re7+ {[%clk 0:00:17]}  Kd6 {[%clk 0:02:00]} 48. Rg7 {[%clk 0:00:15]}  d4 {[%clk 0:01:54]} 49. cxd4 {[%clk 0:00:12]}  exd4 {[%clk 0:01:54]} 50. Rxg6+ {[%clk 0:00:12]}  Kd5 {[%clk 0:01:55]} 51. Ra6 {[%clk 0:00:12]}  Nc6+ {[%clk 0:01:55]} 52. Kb5 {[%clk 0:00:11]}  Rxa6 {[%clk 0:01:45]} 53. Kxa6 {[%clk 0:00:12]}  Ne5 {[%clk 0:01:46]} 54. Bd2 {[%clk 0:00:08]}  Nc4 {[%clk 0:01:25]} 55. Bc1 {[%clk 0:00:07]}  d3 {[%clk 0:01:23]} 56. Kb5 {[%clk 0:00:08]}  d2 {[%clk 0:00:06]} 57. Bxd2 {[%clk 0:00:08]}  Nxd2 {[%clk 0:00:06]} 58. Kb4 {[%clk 0:00:08]}  Ke4 {[%clk 0:00:02]} 59. Kc3 {[%clk 0:00:08]}  Ke3 {[%clk 0:00:02]} 60. g5 {[%clk 0:00:08]}  Ne4+ {[%clk 0:00:01]} 61. Kxb3 {[%clk 0:00:09]}  Nxg5 {[%clk 0:00:02]} 62. Kc4 {[%clk 0:00:10]}  Ke4 {[%clk 0:00:02]} 63. b4 {[%clk 0:00:10]}  Ne6 {[%clk 0:00:03]} 64. Kb5 {[%clk 0:00:11]}  Nd4+ {[%clk 0:00:03]} 65. Kc5 {[%clk 0:00:11]}  Kd3 {[%clk 0:00:03]} 66. Kd5 {[%clk 0:00:10]}  Kc3 {[%clk 0:00:01]} 67. Kc5 {[%clk 0:00:11]}  Kd3 {[%clk 0:00:02]} 68. Kd5 {[%clk 0:00:11]}  Kc3 {[%clk 0:00:02]} 69. Kc5 {[%clk 0:00:12]}  Kd3 {[%clk 0:00:02]} 1/2-1/2


[Site "https://www.chess.com"]

[Event "Titled Tuesday Blitz May 16 Early 2023"]
[White "SereneSalmon"]
[Black "Preotu, Razvan"]
[BlackFideId "2613280"]
[WhiteElo "2492"]
[BlackElo "2407"]
[Result "1-0"]
[Round "07"]
[TimeControl "180+2"]
[Date "2023.05.16"]
[WhiteClock "0:00:18"]
[BlackClock "0:00:08"]

1. d4 {[%clk 0:03:00]}  Nf6 {[%clk 0:02:52]} 2. c4 {[%clk 0:03:01]}  g6 {[%clk 0:02:52]} 3. Nc3 {[%clk 0:03:01]}  d5 {[%clk 0:02:52]} 4. cxd5 {[%clk 0:03:01]}  Nxd5 {[%clk 0:02:53]} 5. e4 {[%clk 0:03:02]}  Nxc3 {[%clk 0:02:54]} 6. bxc3 {[%clk 0:03:03]}  Bg7 {[%clk 0:02:54]} 7. Nf3 {[%clk 0:03:03]}  c5 {[%clk 0:02:54]} 8. h3 {[%clk 0:03:04]}  O-O {[%clk 0:02:52]} 9. Be2 {[%clk 0:03:04]}  Nc6 {[%clk 0:02:51]} 10. Be3 {[%clk 0:03:04]}  cxd4 {[%clk 0:02:52]} 11. cxd4 {[%clk 0:03:04]}  Qa5+ {[%clk 0:02:52]} 12. Bd2 {[%clk 0:03:05]}  Qa3 {[%clk 0:02:52]} 13. d5 {[%clk 0:03:05]}  Ne5 {[%clk 0:02:52]} 14. Rb1 {[%clk 0:03:00]}  Qxa2 {[%clk 0:02:41]} 15. O-O {[%clk 0:02:54]}  Bd7 {[%clk 0:02:37]} 16. Rxb7 {[%clk 0:02:40]}  Rfb8 {[%clk 0:02:36]} 17. Qb1 {[%clk 0:02:14]}  Qxb1 {[%clk 0:02:32]} 18. Rfxb1 {[%clk 0:02:13]}  Nxf3+ {[%clk 0:02:33]} 19. Bxf3 {[%clk 0:02:13]}  Be5 {[%clk 0:02:33]} 20. Ba5 {[%clk 0:02:05]}  Bc8 {[%clk 0:02:26]} 21. Rxb8 {[%clk 0:02:02]}  Rxb8 {[%clk 0:02:27]} 22. Rc1 {[%clk 0:01:47]}  Bd7 {[%clk 0:02:26]} 23. Be2 {[%clk 0:01:38]}  f5 {[%clk 0:02:16]} 24. exf5 {[%clk 0:01:28]}  gxf5 {[%clk 0:02:17]} 25. g3 {[%clk 0:01:24]}  Kf7 {[%clk 0:01:46]} 26. Bf3 {[%clk 0:00:50]}  Rb2 {[%clk 0:01:25]} 27. Bc3 {[%clk 0:00:48]}  Bxc3 {[%clk 0:01:24]} 28. Rxc3 {[%clk 0:00:49]}  a5 {[%clk 0:00:46]} 29. Rc7 {[%clk 0:00:49]}  Ke8 {[%clk 0:00:46]} 30. Ra7 {[%clk 0:00:37]}  a4 {[%clk 0:00:46]} 31. Ra8+ {[%clk 0:00:36]}  Kf7 {[%clk 0:00:46]} 32. Bh5+ {[%clk 0:00:36]}  Kf6 {[%clk 0:00:42]} 33. Ra7 {[%clk 0:00:35]}  Bb5 {[%clk 0:00:33]} 34. Kg2 {[%clk 0:00:22]}  Rd2 {[%clk 0:00:22]} 35. Bf3 {[%clk 0:00:20]}  Rd4 {[%clk 0:00:10]} 36. Rb7 {[%clk 0:00:20]}  Be8 {[%clk 0:00:10]} 37. Rb6+ {[%clk 0:00:18]}  Ke5 {[%clk 0:00:08]} 38. Re6# {[%clk 0:00:18]} 1-0


[Site "https://www.chess.com"]

[Event "Titled Tuesday Blitz May 16 Early 2023"]
[White "Mamedov, Edgar"]
[Black "Ljukin, Sergei"]
[WhiteFideId "13739980"]
[BlackFideId "14102200"]
[WhiteElo "2317"]
[BlackElo "2312"]
[Result "1-0"]
[Round "07"]
[TimeControl "180+2"]
[Date "2023.05.16"]
[WhiteClock "0:00:27"]
[BlackClock "0:00:05"]

1. e4 {[%clk 0:02:59]}  e6 {[%clk 0:02:59]} 2. d3 {[%clk 0:02:57]}  d5 {[%clk 0:03:00]} 3. Nd2 {[%clk 0:02:57]}  Nf6 {[%clk 0:03:00]} 4. Ngf3 {[%clk 0:02:56]}  Be7 {[%clk 0:03:00]} 5. g3 {[%clk 0:02:57]}  O-O {[%clk 0:03:01]} 6. Bg2 {[%clk 0:02:57]}  c5 {[%clk 0:03:01]} 7. O-O {[%clk 0:02:57]}  Nc6 {[%clk 0:03:02]} 8. c3 {[%clk 0:02:52]}  b5 {[%clk 0:03:01]} 9. e5 {[%clk 0:02:52]}  Nd7 {[%clk 0:03:00]} 10. d4 {[%clk 0:02:52]}  b4 {[%clk 0:02:59]} 11. Re1 {[%clk 0:02:52]}  bxc3 {[%clk 0:02:59]} 12. bxc3 {[%clk 0:02:52]}  cxd4 {[%clk 0:02:57]} 13. cxd4 {[%clk 0:02:52]}  a5 {[%clk 0:02:53]} 14. Nf1 {[%clk 0:02:52]}  Ba6 {[%clk 0:02:52]} 15. h4 {[%clk 0:02:52]}  Nb4 {[%clk 0:02:52]} 16. N1h2 {[%clk 0:02:43]}  Nd3 {[%clk 0:02:49]} 17. Re3 {[%clk 0:02:43]}  Nxc1 {[%clk 0:02:44]} 18. Rxc1 {[%clk 0:02:43]}  Nb6 {[%clk 0:02:39]} 19. h5 {[%clk 0:02:34]}  h6 {[%clk 0:02:30]} 20. Bf1 {[%clk 0:02:31]}  Bxf1 {[%clk 0:02:28]} 21. Qxf1 {[%clk 0:02:30]}  Nc4 {[%clk 0:02:25]} 22. Re2 {[%clk 0:02:28]}  Rb8 {[%clk 0:02:20]} 23. Ng4 {[%clk 0:02:27]}  Ba3 {[%clk 0:01:50]} 24. Rb1 {[%clk 0:02:24]}  Qc7 {[%clk 0:01:43]} 25. Kg2 {[%clk 0:02:21]}  Rxb1 {[%clk 0:01:40]} 26. Qxb1 {[%clk 0:02:20]}  Rb8 {[%clk 0:01:40]} 27. Qd3 {[%clk 0:02:19]}  Qb6 {[%clk 0:01:31]} 28. Nd2 {[%clk 0:01:56]}  Rc8 {[%clk 0:01:10]} 29. Nxc4 {[%clk 0:01:54]}  dxc4 {[%clk 0:01:08]} 30. Qxa3 {[%clk 0:01:54]}  c3 {[%clk 0:00:53]} 31. Ne3 {[%clk 0:01:49]}  Qxd4 {[%clk 0:00:51]} 32. Rc2 {[%clk 0:01:39]}  Qxe5 {[%clk 0:00:48]} 33. Qa4 {[%clk 0:01:25]}  Qxh5 {[%clk 0:00:44]} 34. Qd7 {[%clk 0:01:24]}  Qc5 {[%clk 0:00:41]} 35. Nd1 {[%clk 0:01:20]}  Qc4 {[%clk 0:00:20]} 36. Rxc3 {[%clk 0:01:06]}  Qe4+ {[%clk 0:00:20]} 37. Rf3 {[%clk 0:01:03]}  Rc2 {[%clk 0:00:15]} 38. Qxf7+ {[%clk 0:00:58]}  Kh7 {[%clk 0:00:14]} 39. Qf4 {[%clk 0:00:41]}  Qxf4 {[%clk 0:00:14]} 40. Rxf4 {[%clk 0:00:40]}  Rxa2 {[%clk 0:00:14]} 41. Re4 {[%clk 0:00:39]}  Rd2 {[%clk 0:00:13]} 42. Nc3 {[%clk 0:00:38]}  Rd6 {[%clk 0:00:12]} 43. Na4 {[%clk 0:00:37]}  Kg6 {[%clk 0:00:11]} 44. Re5 {[%clk 0:00:37]}  Ra6 {[%clk 0:00:11]} 45. Nc5 {[%clk 0:00:36]}  Kf6 {[%clk 0:00:10]} 46. f4 {[%clk 0:00:27]}  Rc6 {[%clk 0:00:09]} 47. Ne4+ {[%clk 0:00:26]}  Kf7 {[%clk 0:00:09]} 48. Rxa5 {[%clk 0:00:27]}  Rc4 {[%clk 0:00:05]} 49. Nd6+ {[%clk 0:00:27]} 1-0


[Site "https://www.chess.com"]

[Event "Titled Tuesday Blitz May 16 Early 2023"]
[White "Sourath Biswas"]
[Black "Martic, Ivan"]
[WhiteFideId "35091484"]
[BlackFideId "929301"]
[WhiteElo "2171"]
[BlackElo "2360"]
[Result "0-1"]
[Round "07"]
[TimeControl "180+2"]
[Date "2023.05.16"]
[WhiteClock "0:00:01"]
[BlackClock "0:00:51"]

1. d4 {[%clk 0:03:00]}  d5 {[%clk 0:02:58]} 2. Bf4 {[%clk 0:03:01]}  c5 {[%clk 0:02:55]} 3. e3 {[%clk 0:03:02]}  Nc6 {[%clk 0:02:55]} 4. Nf3 {[%clk 0:03:02]}  Nf6 {[%clk 0:02:49]} 5. c3 {[%clk 0:03:00]}  cxd4 {[%clk 0:02:44]} 6. exd4 {[%clk 0:03:00]}  Bg4 {[%clk 0:02:44]} 7. Qb3 {[%clk 0:03:01]}  Qc8 {[%clk 0:02:43]} 8. Nbd2 {[%clk 0:03:00]}  Bxf3 {[%clk 0:02:41]} 9. Nxf3 {[%clk 0:03:00]}  e6 {[%clk 0:02:42]} 10. Bd3 {[%clk 0:03:00]}  Be7 {[%clk 0:02:42]} 11. O-O {[%clk 0:03:00]}  O-O {[%clk 0:02:42]} 12. Rfe1 {[%clk 0:02:58]}  a6 {[%clk 0:02:40]} 13. Qc2 {[%clk 0:02:52]}  b5 {[%clk 0:02:34]} 14. Ne5 {[%clk 0:02:53]}  g6 {[%clk 0:02:21]} 15. a3 {[%clk 0:02:44]}  Nxe5 {[%clk 0:02:16]} 16. Bxe5 {[%clk 0:02:44]}  Nd7 {[%clk 0:02:13]} 17. Bf4 {[%clk 0:02:43]}  Bf6 {[%clk 0:02:11]} 18. Qe2 {[%clk 0:02:41]}  Nb6 {[%clk 0:02:06]} 19. Bh6 {[%clk 0:02:33]}  Bg7 {[%clk 0:02:05]} 20. Bxg7 {[%clk 0:02:33]}  Kxg7 {[%clk 0:02:06]} 21. Qe5+ {[%clk 0:02:31]}  Kg8 {[%clk 0:02:06]} 22. h4 {[%clk 0:02:31]}  Qb8 {[%clk 0:02:01]} 23. Qe3 {[%clk 0:02:29]}  Nc4 {[%clk 0:01:58]} 24. Qe2 {[%clk 0:02:08]}  Qf4 {[%clk 0:01:57]} 25. g3 {[%clk 0:02:08]}  Qf6 {[%clk 0:01:57]} 26. a4 {[%clk 0:02:05]}  Rab8 {[%clk 0:01:53]} 27. b3 {[%clk 0:02:02]}  Nd6 {[%clk 0:01:52]} 28. Qe5 {[%clk 0:01:48]}  Qxe5 {[%clk 0:01:49]} 29. dxe5 {[%clk 0:01:49]}  Nf5 {[%clk 0:01:46]} 30. axb5 {[%clk 0:01:47]}  axb5 {[%clk 0:01:47]} 31. Ra5 {[%clk 0:01:15]}  Rfc8 {[%clk 0:01:41]} 32. Rc1 {[%clk 0:01:15]}  Nd4 {[%clk 0:01:29]} 33. Ra7 {[%clk 0:00:41]}  Nf3+ {[%clk 0:01:24]} 34. Kg2 {[%clk 0:00:39]}  Nxe5 {[%clk 0:01:25]} 35. Be2 {[%clk 0:00:35]}  b4 {[%clk 0:01:17]} 36. c4 {[%clk 0:00:33]}  dxc4 {[%clk 0:01:13]} 37. bxc4 {[%clk 0:00:32]}  b3 {[%clk 0:01:14]} 38. Ra4 {[%clk 0:00:23]}  Rd8 {[%clk 0:00:58]} 39. c5 {[%clk 0:00:14]}  Rd2 {[%clk 0:00:56]} 40. Kf1 {[%clk 0:00:14]}  b2 {[%clk 0:00:54]} 41. Rb1 {[%clk 0:00:01]}  Rc2 {[%clk 0:00:51]} 0-1


[Site "https://www.chess.com"]

[Event "Titled Tuesday Blitz May 16 Early 2023"]
[White "Mahalakshmi, M"]
[Black "Veiga, Jose Francisco R P Neves"]
[WhiteFideId "5001080"]
[BlackFideId "1930087"]
[WhiteElo "2176"]
[BlackElo "2320"]
[Result "1-0"]
[Round "07"]
[TimeControl "180+2"]
[Date "2023.05.16"]
[WhiteClock "0:00:41"]
[BlackClock "0:00:06"]

1. e4 {[%clk 0:03:00]}  c5 {[%clk 0:02:53]} 2. Nf3 {[%clk 0:02:58]}  e6 {[%clk 0:02:53]} 3. d4 {[%clk 0:02:58]}  cxd4 {[%clk 0:02:54]} 4. Nxd4 {[%clk 0:02:58]}  Nc6 {[%clk 0:02:53]} 5. Nc3 {[%clk 0:02:46]}  Qc7 {[%clk 0:02:52]} 6. Be3 {[%clk 0:02:45]}  a6 {[%clk 0:02:48]} 7. Be2 {[%clk 0:02:42]}  Nf6 {[%clk 0:02:48]} 8. O-O {[%clk 0:02:42]}  Bb4 {[%clk 0:02:48]} 9. f3 {[%clk 0:02:37]}  O-O {[%clk 0:02:46]} 10. Kh1 {[%clk 0:02:31]}  Bxc3 {[%clk 0:02:46]} 11. bxc3 {[%clk 0:02:32]}  d5 {[%clk 0:02:46]} 12. Bg5 {[%clk 0:02:22]}  Qe5 {[%clk 0:02:13]} 13. f4 {[%clk 0:02:16]}  Qc7 {[%clk 0:02:06]} 14. Bxf6 {[%clk 0:02:14]}  gxf6 {[%clk 0:02:04]} 15. exd5 {[%clk 0:02:12]}  exd5 {[%clk 0:02:03]} 16. Bd3 {[%clk 0:02:12]}  Ne7 {[%clk 0:01:53]} 17. Rf3 {[%clk 0:01:55]}  Kh8 {[%clk 0:01:50]} 18. Rg3 {[%clk 0:01:36]}  Qxf4 {[%clk 0:01:27]} 19. Qh5 {[%clk 0:01:30]}  Ng6 {[%clk 0:01:27]} 20. Rf1 {[%clk 0:01:15]}  Qe5 {[%clk 0:01:20]} 21. Qh6 {[%clk 0:01:15]}  Bd7 {[%clk 0:01:14]} 22. Bxg6 {[%clk 0:00:58]}  fxg6 {[%clk 0:01:11]} 23. Rxg6 {[%clk 0:00:58]}  Rg8 {[%clk 0:00:35]} 24. Rxg8+ {[%clk 0:00:56]}  Rxg8 {[%clk 0:00:21]} 25. Qxf6+ {[%clk 0:00:56]}  Qxf6 {[%clk 0:00:20]} 26. Rxf6 {[%clk 0:00:57]}  Re8 {[%clk 0:00:20]} 27. h3 {[%clk 0:00:54]}  Re1+ {[%clk 0:00:20]} 28. Kh2 {[%clk 0:00:54]}  Re5 {[%clk 0:00:17]} 29. Rf7 {[%clk 0:00:52]}  Bc6 {[%clk 0:00:16]} 30. Rc7 {[%clk 0:00:45]}  h5 {[%clk 0:00:09]} 31. Nxc6 {[%clk 0:00:45]}  bxc6 {[%clk 0:00:09]} 32. Rxc6 {[%clk 0:00:45]}  Re2 {[%clk 0:00:08]} 33. Rxa6 {[%clk 0:00:45]}  Rxc2 {[%clk 0:00:09]} 34. Rh6+ {[%clk 0:00:45]}  Kg7 {[%clk 0:00:09]} 35. Rxh5 {[%clk 0:00:46]}  Rxa2 {[%clk 0:00:07]} 36. Rxd5 {[%clk 0:00:46]}  Rc2 {[%clk 0:00:07]} 37. Rc5 {[%clk 0:00:46]}  Kf6 {[%clk 0:00:07]} 38. Kg3 {[%clk 0:00:46]}  Ke6 {[%clk 0:00:07]} 39. h4 {[%clk 0:00:47]}  Kd6 {[%clk 0:00:07]} 40. Rc4 {[%clk 0:00:47]}  Kd5 {[%clk 0:00:07]} 41. Rd4+ {[%clk 0:00:47]}  Ke5 {[%clk 0:00:07]} 42. Rd3 {[%clk 0:00:47]}  Kf5 {[%clk 0:00:04]} 43. Rf3+ {[%clk 0:00:47]}  Kg6 {[%clk 0:00:05]} 44. Kh3 {[%clk 0:00:46]}  Rc1 {[%clk 0:00:03]} 45. g4 {[%clk 0:00:46]}  Rh1+ {[%clk 0:00:03]} 46. Kg3 {[%clk 0:00:47]}  Ra1 {[%clk 0:00:02]} 47. h5+ {[%clk 0:00:46]}  Kg7 {[%clk 0:00:02]} 48. Kh4 {[%clk 0:00:45]}  Rh1+ {[%clk 0:00:01]} 49. Kg5 {[%clk 0:00:45]}  Ra1 {[%clk 0:00:01]} 50. Rf5 {[%clk 0:00:45]}  Ra3 {[%clk 0:00:01]} 51. Rc5 {[%clk 0:00:45]}  Kg8 {[%clk 0:00:01]} 52. Rc6 {[%clk 0:00:44]}  Ra5+ {[%clk 0:00:01]} 53. Kg6 {[%clk 0:00:44]}  Kf8 {[%clk 0:00:02]} 54. Rc8+ {[%clk 0:00:44]}  Ke7 {[%clk 0:00:03]} 55. h6 {[%clk 0:00:44]}  Kd7 {[%clk 0:00:03]} 56. Rc4 {[%clk 0:00:42]}  Ra1 {[%clk 0:00:04]} 57. h7 {[%clk 0:00:42]}  Rh1 {[%clk 0:00:05]} 58. Kg7 {[%clk 0:00:41]}  Ke6 {[%clk 0:00:06]} 1-0


[Site "https://www.chess.com"]